bitfinex-derivatives/quotes_ETHF0:USTF0_20250624
["timestamp","ask_amount","ask_price","bid_price","bid_amount"]
[1750779341229,0.82078,2435.5,2435.4,0.82076]
[1750779341523,3.2078,2435.7,2435.6,0.82071]
[1750779341717,0.82074,2435.6,2435.5,0.82073]
[1750779342527,4.0285,2435.7,2435.6,0.82071]
[1750779342721,0.82074,2435.6,2435.5,0.82072]
[1750779343724,0.82078,2435.4,2435.3,0.6953]
[1750779343923,0.82084,2435.3,2435.2,0.82082]
[1750779344124,0.82088,2435.1,2434.8,5.275]
[1750779344325,0.82087,2435.2,2435.1,0.82086]
[1750779344526,0.82091,2435.1,2435.0,0.82089]
[1750779344726,5.25975,2435.4,2434.9,0.82093]
[1750779344727,0.82094,2435.0,2434.9,0.82093]
[1750779345033,0.8209,2435.1,2435.0,0.82089]
[1750779345836,0.82094,2435.0,2434.9,0.82092]
[1750779346134,0.82094,2435.0,2434.8,2.0672]
[1750779346135,0.82087,2435.2,2435.1,0.82085]
[1750779346336,0.8209,2435.1,2435.0,0.82088]
[1750779348235,7.78787,2435.2,2435.1,0.82088]
[1750779348829,0.82092,2435.1,2435.0,0.8209]
[1750779349028,0.82095,2434.9,2434.8,1.53255]
[1750779349231,0.82103,2434.8,2434.7,0.82101]
[1750779349530,10.1758,2435.4,2435.0,0.82091]
[1750779349731,0.82084,2435.3,2435.2,0.82082]
[1750779350027,10.9966,2435.4,2435.3,0.82081]
[1750779350428,0.82084,2435.3,2435.2,0.82082]
[1750779351436,0.82088,2435.1,2435.0,0.82089]
[1750779352238,0.82083,2435.3,2435.2,0.82081]
[1750779352433,3.2078,2435.4,2435.3,0.82081]
[1750779352634,1.322,2436.1,2435.3,2.05204]
[1750779352941,6.969,2436.2,2435.8,0.82063]
[1750779353138,0.82064,2435.9,2435.8,0.82063]
[1750779353340,0.82068,2435.7,2435.6,3.2078]
[1750779353540,0.82076,2435.5,2435.4,0.82075]
[1750779353733,6.969,2435.7,2435.6,0.82071]
[1750779354536,0.82073,2435.6,2435.5,0.82072]
[1750779354737,7.7897,2435.7,2435.6,0.82071]
[1750779355643,0.82077,2435.5,2435.4,0.82076]
[1750779356240,0.82076,2435.5,2435.4,0.82075]
[1750779356834,0.82081,2435.3,2435.2,0.82083]
[1750779357346,0.82085,2435.2,2435.1,1.49275]
[1750779357744,0.82085,2435.2,2435.1,1.49278]
[1750779358741,7.80484,2435.3,2435.2,0.82085]
[1750779358948,0.82085,2435.2,2435.1,1.49276]
[1750779359544,7.80484,2435.3,2435.2,0.82085]
[1750779359745,6.984,2435.3,2435.2,0.82085]
[1750779360142,7.80481,2435.3,2435.2,0.82085]
[1750779360935,6.984,2435.3,2435.2,0.82085]
[1750779361144,47.286,2435.9,2435.5,0.82074]
[1750779361345,9.076,2436.4,2435.8,2.05162]
[1750779361538,9.076,2436.4,2436.3,0.82047]
[1750779361539,7.80546,2436.4,2436.3,0.82047]
[1750779361745,0.8204,2436.6,2436.5,0.8204]
[1750779361944,6.985,2436.7,2436.2,3.2078]
[1750779361945,7.80536,2436.7,2436.6,0.82037]
[1750779362145,1.89723719,2436.7,2436.6,0.82037]
[1750779362344,1.07687719,2436.7,2436.6,0.82037]
[1750779362554,7.80524,2437.0,2436.9,0.82027]
[1750779362744,7.80524,2437.0,2436.6,3.2078]
[1750779363051,7.80526,2437.0,2436.8,0.8203]
[1750779363250,7.80526,2437.0,2436.8,0.82029]
[1750779363446,6.985,2437.0,2436.7,1.3084]
[1750779363646,0.82031,2436.8,2436.7,1.3084]
[1750779363847,0.82031,2436.8,2436.6,4.02815]
[1750779364247,0.82031,2436.8,2436.6,3.2078]
[1750779364444,6.985,2437.0,2436.6,3.2078]
[1750779364646,3.2078,2436.7,2436.4,1.3084]
[1750779364852,12.76533955,2436.6,2435.9,1.384]
[1750779365052,12.76533955,2436.6,2436.3,0.82045]
[1750779365462,0.82047,2436.3,2436.2,0.82049]
[1750779365645,5.78133955,2436.6,2436.0,4.607]
[1750779365850,0.82044,2436.4,2436.3,3.2078]
[1750779366353,0.82049,2436.3,2436.0,1.3992]
[1750779366552,0.82046,2436.4,2436.2,0.82051]
[1750779366748,0.82043,2436.5,2436.0,1.3992]
[1750779366954,0.82045,2436.4,2436.3,0.82047]
[1750779367658,0.82047,2436.3,2436.2,0.82048]
[1750779367953,5.78133955,2436.3,2435.9,4.5918]
[1750779368153,0.82057,2436.1,2436.0,0.82057]
[1750779368657,0.82058,2436.0,2435.9,1.52099]
[1750779368857,0.82056,2436.1,2436.0,0.82057]
[1750779369460,0.82058,2436.0,2435.9,1.521]
[1750779369653,0.82062,2435.9,2435.8,0.82062]
[1750779370453,7.675,2436.2,2435.6,5.25957]
[1750779370653,0.8206,2436.0,2435.9,0.82059]
[1750779370853,0.8206,2436.0,2435.7,1.3992]
[1750779370854,0.82064,2435.9,2435.8,0.82063]
[1750779371258,0.82066,2435.8,2435.6,3.2078]
[1750779371760,0.82066,2435.8,2435.7,0.82066]
[1750779371956,0.82068,2435.7,2435.6,3.2078]
[1750779372160,3.2078,2435.7,2435.2,3.2078]
[1750779372352,0.82079,2435.4,2435.3,0.82078]
[1750779372659,0.82074,2435.6,2435.5,0.82073]
[1750779372860,0.82076,2435.5,2435.4,0.82075]
[1750779373660,0.8208,2435.4,2435.3,0.82079]
[1750779373860,6.55689317,2436.5,2435.2,3.2078]
[1750779373861,1.3504,2436.2,2436.1,0.82054]
[1750779374061,2.17092,2436.2,2435.9,3.2078]
[1750779374358,0.8205,2436.3,2436.2,0.8205]
[1750779374562,0.82047,2436.4,2436.3,0.82047]
[1750779374758,2.22793,2436.5,2436.0,3.48712]
[1750779374957,0.82045,2436.4,2436.3,0.82046]
[1750779375357,12.76433955,2436.6,2435.9,3.2078]
[1750779375358,0.82054,2436.2,2435.9,3.2078]
[1750779375660,0.8205,2436.3,2436.2,0.82049]
[1750779375848,0.82052,2436.2,2436.1,0.82052]
[1750779376048,0.82056,2436.1,2436.0,0.82054]
[1750779376655,0.82061,2435.9,2435.8,1.50413]
[1750779376957,0.82061,2435.9,2435.8,1.50412]
[1750779377465,0.82061,2435.9,2435.8,1.50413]
[1750779378061,0.82062,2435.9,2435.8,0.82061]
[1750779378258,0.82065,2435.8,2435.7,0.82066]
[1750779378654,0.82063,2435.9,2435.8,0.82062]
[1750779379261,0.82063,2435.9,2435.8,0.82064]
[1750779379662,0.82069,2435.7,2435.6,0.82069]
[1750779379961,0.82071,2435.6,2435.5,0.688]
[1750779380962,0.82078,2435.4,2435.3,0.82079]
[1750779381860,9.03471,2435.7,2435.2,3.9024]
[1750779381861,0.82081,2435.3,2435.2,4.72322]
[1750779382057,0.82081,2435.3,2435.2,1.51542]
[1750779382461,0.8208,2435.4,2435.3,0.82079]
[1750779382864,0.82081,2435.3,2435.2,1.51542]
[1750779383256,0.8208,2435.4,2435.3,0.82079]
[1750779384163,0.82078,2435.5,2435.4,0.82076]
[1750779384363,0.82074,2435.6,2435.4,0.82076]
[1750779384565,0.82074,2435.5,2435.4,0.82076]
[1750779385260,0.82074,2435.6,2435.4,0.82076]
[1750779385460,0.82073,2435.6,2435.5,0.82074]
[1750779385662,7.80473,2435.6,2435.5,0.82074]
[1750779386069,0.82078,2435.5,2435.4,0.82076]
[1750779386261,6.984,2435.6,2435.5,0.82074]
[1750779386465,7.80471,2435.6,2435.5,0.82074]
[1750779387267,3.2078,2435.9,2435.3,1.3327]
[1750779387466,7.79267,2435.8,2435.7,0.82065]
[1750779387666,7.79255,2436.1,2436.0,0.82054]
[1750779388461,6.972,2436.1,2436.0,0.82054]
[1750779389070,7.79254,2436.1,2436.0,0.82054]
[1750779390064,16.07478,2436.1,2435.2,6.45142386]
[1750779390266,16.07478,2436.1,2434.9,4.05452982]
[1750779390267,0.82091,2435.0,2434.9,3.2078]
[1750779390470,6.972,2435.1,2434.9,3.2078]
[1750779390773,7.79288,2435.1,2434.9,4.02872]
[1750779390971,7.79288,2435.1,2434.9,4.02873]
[1750779391270,6.972,2435.1,2434.9,4.02871]
[1750779391473,7.79288,2435.1,2434.9,4.02871]
[1750779391981,6.972,2435.1,2435.0,0.82091]
[1750779392270,6.972,2435.1,2435.0,2.14101]
[1750779392474,7.79288,2435.1,2435.0,1.3201]
[1750779392977,7.79288,2435.1,2435.0,2.14101]
[1750779393170,6.972,2435.1,2435.0,2.14101]
[1750779393372,7.79288,2435.1,2435.0,2.14101]
[1750779394372,7.79288,2435.1,2435.0,1.3201]
[1750779395473,7.79288,2435.1,2435.0,2.14101]
[1750779395775,7.79288,2435.1,2435.0,1.3201]
[1750779396576,0.82091,2435.0,2434.9,4.02872]
[1750779396885,0.82091,2435.0,2434.9,3.2078]
[1750779398181,0.82098,2434.8,2434.7,2.1867]
[1750779398677,0.82098,2434.9,2434.8,0.82097]
[1750779399278,0.82094,2435.0,2434.9,0.82091]
[1750779401083,7.79291,2435.1,2435.0,0.82091]
[1750779401371,6.972,2435.1,2435.0,0.82091]
[1750779401575,7.79288,2435.1,2435.0,0.82091]
[1750779401766,6.972,2435.1,2435.0,0.82091]
[1750779402168,0.82083,2435.3,2435.2,0.82084]
[1750779402375,7.7948,2435.4,2435.3,0.82081]
[1750779402574,3.2078,2435.8,2435.2,8.98913955]
[1750779402779,0.82063,2435.9,2435.8,0.82064]
[1750779404082,0.82068,2435.8,2435.7,0.82064]
[1750779404475,0.82063,2435.9,2435.8,0.8206]
[1750779405180,0.82068,2435.7,2435.6,4.02847]
[1750779405383,0.82068,2435.7,2435.6,0.82067]
[1750779406180,0.82067,2435.8,2435.7,0.82064]
[1750779407272,12.23237,2435.9,2435.4,0.6921]
[1750779407472,0.82072,2435.7,2435.6,0.82069]
[1750779409081,0.82074,2435.6,2435.5,0.82072]
[1750779409276,0.82068,2435.8,2435.7,0.82064]
[1750779410685,0.82073,2435.7,2435.6,0.82069]
[1750779413286,0.82067,2435.8,2435.7,0.82064]
[1750779414087,11.00143,2435.9,2435.8,0.82064]
[1750779414385,10.1808,2436.2,2435.9,2.05149]
[1750779414574,10.1808,2436.2,2436.1,0.82054]
[1750779414776,3.2078,2436.6,2436.1,0.82054]
[1750779415081,10.1808,2436.9,2436.3,5.25895]
[1750779415387,6.973,2436.9,2436.8,0.82031]
[1750779415589,7.79329,2436.9,2436.8,0.82031]
[1750779417490,0.82034,2436.7,2436.6,1.52425]
[1750779417873,0.82033,2436.8,2436.7,0.82031]
[1750779418582,0.82034,2436.7,2436.6,0.7039]
[1750779418782,0.82034,2436.7,2436.2,0.82048]
[1750779418783,0.8205,2436.3,2436.2,0.82048]
[1750779419087,7.73142,2436.5,2436.4,0.82044]
[1750779419381,7.73141,2436.5,2436.4,0.82044]
[1750779421587,0.82046,2436.4,2436.3,0.82044]
[1750779423990,7.73143,2436.5,2436.4,0.82044]
[1750779424286,0.82033,2436.8,2436.7,0.82029]
[1750779424595,0.82036,2436.8,2436.7,0.82031]
[1750779424887,4.02808,2437.0,2436.9,0.82027]
[1750779425089,0.82034,2436.8,2436.7,0.82031]
[1750779426286,0.8203,2436.9,2436.8,0.82027]
[1750779426685,4.02807,2437.0,2436.9,0.82027]
[1750779428195,0.82032,2436.9,2436.8,0.82028]
[1750779429898,0.82034,2436.8,2436.7,0.82033]
[1750779431794,3.9237,2437.3,2436.9,0.82027]
[1750779431995,0.82019,2437.3,2437.2,0.82017]
[1750779432198,3.2078,2437.6,2437.2,5.0]
[1750779432499,0.82013,2437.4,2437.3,0.8201]
[1750779434691,0.82009,2437.5,2437.4,0.82007]
[1750779434993,4.02786,2437.6,2437.5,0.82007]
[1750779435293,0.41612323,2438.1,2437.6,2.0501]
[1750779435491,0.81994,2437.9,2437.8,3.2078]
[1750779436189,0.81992,2438.0,2437.9,0.81991]
[1750779436496,0.81992,2438.0,2437.8,3.2078]
[1750779436497,0.81989,2438.1,2438.0,0.8199]
[1750779436697,11.03860955,2438.4,2438.2,0.81982]
[1750779436698,0.81982,2438.3,2438.2,0.81982]
[1750779437099,6.908,2438.7,2438.2,3.2078]
[1750779437397,0.81973,2438.6,2438.5,0.81972]
[1750779437594,0.8197,2438.6,2438.5,0.81972]
[1750779437805,0.81969,2438.7,2438.6,0.81968]
[1750779438303,0.81968,2438.7,2438.6,0.81967]
[1750779438691,0.8197,2438.6,2438.5,4.02751]
[1750779439699,0.81969,2438.7,2438.6,0.81969]
[1750779440102,0.81966,2438.8,2438.7,0.81965]
[1750779440286,0.81965,2438.8,2438.7,0.81964]
[1750779440695,0.81969,2438.7,2438.6,0.81969]
[1750779441592,0.8197,2438.6,2438.5,4.02751]
[1750779442997,0.81966,2438.8,2438.7,0.81965]
[1750779443592,1.36,2439.2,2438.5,6.58659]
[1750779443800,7.72557,2439.1,2439.0,0.81955]
[1750779444297,6.906,2439.1,2439.0,0.81955]
[1750779444497,0.81949,2439.3,2439.2,0.81946]
[1750779445604,0.81953,2439.2,2439.1,0.81951]
[1750779445801,0.81957,2439.0,2438.9,3.2078]
[1750779446107,0.8196,2438.9,2438.8,0.81963]
[1750779446297,0.81959,2439.0,2438.9,0.81957]
[1750779446505,0.81945,2439.4,2439.3,0.81944]
[1750779446696,3.2078,2439.6,2439.2,2.04875]
[1750779446895,4.0272,2439.6,2439.5,0.8194]
[1750779447605,0.81944,2439.5,2439.4,0.81941]
[1750779447799,13.36783955,2439.7,2439.3,2.04867]
[1750779447992,0.8194,2439.6,2439.5,0.81937]
[1750779448404,6.60061955,2439.9,2439.8,0.8193]
[1750779448608,6.60055955,2440.1,2439.8,3.2078]
[1750779448903,6.934,2440.6,2440.0,2.04807]
[1750779449097,0.81908,2440.5,2440.4,4.02687]
[1750779449606,0.8191,2440.4,2440.3,0.81911]
[1750779450000,5.78133955,2440.4,2440.1,3.2078]
[1750779450196,6.60044955,2440.4,2440.3,0.81913]
[1750779450502,5.78133955,2440.4,2440.3,0.81913]
[1750779451202,0.81889,2441.0,2440.9,0.8189]
[1750779451401,1.47341,2441.3,2440.8,3.2078]
[1750779451601,0.81879,2441.4,2441.2,0.81883]
[1750779451793,5.78133955,2441.5,2441.1,4.02666]
[1750779452102,12.71333955,2441.6,2441.4,3.2078]
[1750779452297,0.81884,2441.2,2441.0,3.2078]
[1750779452506,12.71333955,2441.6,2441.0,3.2078]
[1750779452507,0.81886,2441.1,2441.0,3.2078]
[1750779452702,0.81894,2440.9,2440.7,0.81898]
[1750779452905,0.81894,2440.9,2440.6,3.8696]
[1750779453101,0.81894,2440.9,2440.7,0.81897]
[1750779453407,0.81894,2440.9,2440.6,5.2339]
[1750779453705,5.78133955,2441.0,2440.6,3.8696]
[1750779453897,0.81899,2440.7,2440.6,4.02681]
[1750779454096,0.81899,2440.7,2440.6,3.2078]
[1750779454299,6.60032955,2440.7,2440.6,3.2078]
[1750779455107,5.78133955,2440.7,2440.4,0.6598]
[1750779455307,8.98913955,2440.7,2440.1,0.7076]
[1750779455604,5.78133955,2440.7,2440.3,3.2078]
[1750779455810,0.81904,2440.6,2440.4,0.81907]
[1750779456203,0.81907,2440.5,2440.3,4.02691]
[1750779456507,0.81917,2440.2,2439.9,3.8839]
[1750779456700,0.81917,2440.2,2440.0,0.81921]
[1750779457406,0.8192,2440.1,2440.0,0.81921]
[1750779457709,0.81923,2440.0,2439.9,3.2078]
[1750779458799,5.2384,2440.0,2439.5,0.7037]
[1750779459000,7.74922,2440.1,2439.9,0.81925]
[1750779459801,6.93,2440.1,2439.6,1.3794]
[1750779460006,0.8193,2439.9,2439.7,0.81931]
[1750779460206,0.8193,2439.9,2439.8,0.8193]
[1750779460507,11.17438955,2440.0,2439.8,0.81927]
[1750779460705,11.17438955,2440.0,2439.9,0.81926]
[1750779461204,0.81927,2439.9,2439.8,0.81928]
[1750779461605,11.17439955,2440.0,2439.9,0.81926]
[1750779461807,10.35513955,2440.0,2439.5,0.7037]
[1750779462012,5.78133955,2439.7,2439.5,0.7037]
[1750779462208,0.8194,2439.5,2439.4,0.8194]
[1750779462508,0.81936,2439.6,2439.2,3.42814]
[1750779462698,0.81936,2439.6,2439.5,0.8194]
[1750779463109,16.73849955,2439.7,2439.6,0.81937]
[1750779463302,0.81938,2439.6,2439.5,0.81939]
[1750779463812,15.91913955,2439.7,2439.1,5.3425]
[1750779464011,0.81942,2439.5,2439.4,0.81942]
[1750779464414,0.81949,2439.3,2439.2,0.81948]
[1750779465200,0.8195,2439.2,2439.1,4.0273]
[1750779465709,0.81948,2439.3,2439.2,0.81948]
[1750779466112,0.8195,2439.2,2439.1,4.0273]
[1750779466510,0.81948,2439.3,2439.2,0.81948]
[1750779466710,0.8195,2439.2,2439.1,4.02732]
[1750779467011,0.8195,2439.2,2439.1,0.81952]
[1750779467209,0.81949,2439.3,2439.2,0.81949]
[1750779467414,0.81948,2439.3,2439.2,0.81948]
[1750779467714,0.81953,2439.2,2439.1,0.81951]
[1750779468717,0.81949,2439.3,2439.2,0.81948]
[1750779470311,0.81953,2439.2,2439.1,0.81953]
[1750779470716,0.8196,2438.9,2438.8,4.02741]
[1750779471720,5.78133955,2439.1,2438.9,0.81957]
[1750779471721,0.81959,2439.0,2438.9,0.81957]
[1750779472420,11.03800955,2439.1,2438.7,1.3508]
[1750779472613,0.81963,2438.9,2438.8,0.81959]
[1750779473518,7.75059,2439.0,2438.9,0.8196]
[1750779473717,6.931,2439.0,2438.7,2.7122]
[1750779473914,7.75059,2439.0,2438.9,0.8196]
[1750779474519,0.81963,2438.9,2438.8,0.81961]
[1750779474719,0.81963,2438.8,2438.7,2.7122]
[1750779474905,0.81976,2438.5,2438.4,0.81973]
[1750779475106,0.81976,2438.5,2438.3,2.0257]
[1750779475107,0.81973,2438.6,2438.5,0.81971]
[1750779475417,7.75071,2438.6,2438.5,0.81974]
[1750779476123,7.75072,2438.6,2438.5,0.81974]
[1750779478118,6.931,2438.6,2438.5,0.81974]
[1750779478618,3.2078,2438.8,2438.3,2.0257]
[1750779478915,3.2078,2438.8,2438.7,0.81967]
[1750779479116,10.0958,2438.8,2438.7,0.81967]
[1750779479718,25.754,2439.1,2439.0,0.81953]
[1750779479914,7.70754,2439.1,2439.0,0.81953]
[1750779480114,6.888,2439.1,2439.0,0.81953]
[1750779480306,6.888,2439.1,2438.8,4.83965]
[1750779480307,6.888,2439.2,2439.1,0.81953]
[1750779480711,6.888,2439.2,2438.8,1.3631]
[1750779480917,0.8196,2439.0,2438.9,0.81958]
[1750779481314,10.91531,2439.2,2439.1,0.81953]
[1750779481616,6.888,2439.2,2439.1,0.81953]
[1750779482117,7.7075,2439.2,2439.1,0.81953]
[1750779482320,6.888,2439.2,2439.1,0.81953]
[1750779482522,0.81947,2439.4,2439.0,3.40321]
[1750779482722,6.888,2439.3,2439.0,3.40321]
[1750779482923,6.888,2439.3,2439.2,0.8195]
[1750779483125,7.70747,2439.3,2439.2,0.8195]
[1750779483319,6.888,2439.3,2439.0,1.3543]
[1750779483521,7.83020955,2439.1,2438.6,3.2078]
[1750779483718,5.78133955,2438.8,2438.5,0.6592]
[1750779483920,0.81969,2438.7,2438.6,0.81968]
[1750779484426,0.8197,2438.6,2438.5,0.6592]
[1750779484925,0.81969,2438.7,2438.6,0.81969]
[1750779485116,0.8197,2438.6,2438.5,0.6592]
[1750779485425,0.8197,2438.6,2438.5,1.47892]
[1750779485722,0.8197,2438.6,2438.5,0.6592]
[1750779485920,2.04954,2438.3,2437.6,0.82001]
[1750779486127,5.78133955,2437.9,2437.8,0.81997]
[1750779486320,5.78133955,2437.9,2437.6,0.7178]
[1750779486321,0.81999,2437.8,2437.7,0.81998]
[1750779486626,0.82,2437.7,2437.6,2.87552]
[1750779486822,0.82,2437.8,2437.6,2.87552]
[1750779487128,3.2078,2438.1,2437.9,0.81992]
[1750779487422,3.2078,2438.1,2437.9,0.81993]
[1750779487622,0.81986,2438.2,2438.1,0.81987]
[1750779487827,0.81987,2438.1,2438.0,2.81858]
[1750779488221,6.889,2438.2,2438.0,1.9987]
[1750779488422,0.81987,2438.1,2438.0,2.81859]
[1750779488728,7.70886,2438.2,2438.1,0.81987]
[1750779488917,7.70884,2438.2,2438.1,0.81987]
[1750779489122,6.889,2438.2,2438.1,0.81987]
[1750779489322,7.70887,2438.2,2438.0,2.81859]
[1750779489523,7.70886,2438.2,2438.1,0.81987]
[1750779489722,6.889,2438.2,2438.1,0.81987]
[1750779490830,7.70884,2438.2,2438.1,0.81987]
[1750779491326,0.81987,2438.1,2438.0,2.81859]
[1750779491728,7.70885,2438.2,2438.1,0.81987]
[1750779492431,6.889,2438.2,2438.1,0.81987]
[1750779492837,7.70884,2438.2,2438.1,0.81987]
[1750779493024,6.889,2438.2,2438.1,0.81987]
[1750779493330,6.889,2438.2,2438.0,2.81858]
[1750779493531,0.81987,2438.1,2438.0,2.81858]
[1750779493733,0.81987,2438.1,2438.0,1.48088]
[1750779494029,0.81987,2438.1,2438.0,0.661]
[1750779494222,0.8199,2438.0,2437.9,0.81992]
[1750779494629,0.81989,2438.1,2438.0,0.81987]
[1750779496429,10.91665,2438.2,2438.1,0.81987]
[1750779497434,10.0968,2438.2,2438.1,0.81987]
[1750779497634,10.0978,2438.2,2438.1,0.81987]
[1750779498227,10.0978,2438.2,2438.1,2.21217]
[1750779498524,6.89,2438.2,2438.1,2.21217]
[1750779498729,30.39976,2438.5,2438.4,0.81977]
[1750779499035,10.91756,2438.5,2438.4,0.81977]
[1750779499534,3.2078,2438.5,2438.4,0.81977]
[1750779499836,0.81967,2438.8,2438.7,0.81964]
[1750779500029,1.50293,2438.9,2438.8,0.81963]
[1750779500936,0.81967,2438.7,2438.6,0.8197]
[1750779501631,0.6833,2438.9,2438.3,1.3099]
[1750779501933,6.89,2439.1,2439.0,0.81957]
[1750779502731,7.70953,2439.1,2439.0,2.13937]
[1750779503838,4.02733,2439.2,2439.1,0.81953]
[1750779504136,3.2078,2439.2,2439.1,0.81953]
[1750779504439,0.81953,2439.2,2439.1,0.81951]
[1750779504638,0.81953,2439.1,2439.0,2.79014]
[1750779504837,0.81957,2439.0,2438.9,1.46898]
[1750779505140,6.60089955,2439.1,2439.0,0.81957]
[1750779505940,12.67133955,2439.3,2438.9,2.69839]
[1750779506147,0.81953,2439.2,2439.1,0.81951]
[1750779507138,0.81957,2439.1,2439.0,0.81954]
[1750779507339,0.81957,2439.0,2438.9,1.46898]
[1750779508140,0.81956,2439.1,2439.0,0.81953]
[1750779508341,0.81953,2439.2,2439.1,0.8195]
[1750779508743,0.8196,2439.2,2439.1,0.81958]
[1750779508942,0.8196,2439.1,2439.0,2.25221]
[1750779509448,0.81963,2439.0,2438.9,0.6494]
[1750779509947,5.78133955,2439.0,2438.6,0.6508]
[1750779510146,5.78133955,2438.7,2438.6,0.81973]
[1750779510342,10.0628,2438.9,2438.8,0.8197]
[1750779510537,10.0628,2439.2,2439.0,2.0491]
[1750779510744,10.0628,2439.2,2439.1,0.8196]
[1750779510943,10.88237,2439.2,2439.1,0.8196]
[1750779511244,0.81964,2439.1,2439.0,0.81962]
[1750779512251,6.60097955,2439.1,2439.0,0.81962]
[1750779512447,5.78133955,2439.1,2438.6,0.7155]
[1750779512648,0.81974,2438.7,2438.6,1.53526]
[1750779512947,0.81979,2438.6,2438.5,0.81978]
[1750779513149,12.63633955,2438.8,2438.4,2.759]
[1750779513351,0.81976,2438.7,2438.6,0.81975]
[1750779513749,0.81977,2438.6,2438.5,2.25708]
[1750779513947,12.63633955,2438.8,2438.4,0.7094]
[1750779513948,2.04936,2438.7,2438.4,0.7094]
[1750779514143,7.83086955,2438.5,2438.0,1.393]
[1750779514448,0.81993,2438.2,2438.1,0.81991]
[1750779515648,0.82,2438.0,2437.9,0.81999]
[1750779515952,0.81996,2438.1,2438.0,0.81995]
[1750779517550,6.60126955,2438.2,2438.1,0.81994]
[1750779517751,0.81997,2438.1,2438.0,0.81995]
[1750779518555,6.60126955,2438.2,2438.1,0.81994]
[1750779519455,0.81997,2438.1,2438.0,0.81995]
[1750779520252,0.81993,2438.2,2438.1,0.81994]
[1750779521869,0.81998,2438.1,2438.0,0.81995]
[1750779522365,0.81993,2438.2,2438.1,0.81991]
[1750779523266,0.81999,2438.0,2437.9,0.81995]
[1750779523463,9.80912955,2438.0,2437.9,0.81995]
[1750779523667,3.2078,2438.0,2437.9,0.81995]
[1750779524766,0.82004,2437.9,2437.8,0.82002]
[1750779525561,11.13132955,2438.0,2437.9,0.82001]
[1750779525762,8.98913955,2438.0,2437.9,0.82001]
[1750779526374,3.2078,2438.0,2437.9,0.82001]
[1750779526568,10.0648,2438.3,2438.2,0.81991]
[1750779527261,10.88458,2438.6,2438.3,0.81987]
[1750779527459,10.0648,2438.6,2438.5,0.8198]
[1750779527964,3.2078,2438.6,2438.5,0.8198]
[1750779528361,6.857,2438.8,2438.7,0.81974]
[1750779528562,8.98913955,2439.2,2438.6,5.2572]
[1750779528771,0.81968,2439.0,2438.9,0.81964]
[1750779529175,7.0491,2439.0,2438.5,0.6882]
[1750779529370,0.81976,2438.7,2438.6,0.81974]
[1750779530671,6.43723955,2438.8,2438.7,0.81974]
[1750779530862,7.25693955,2438.8,2438.7,0.81974]
[1750779531062,0.81977,2438.7,2438.6,0.81975]
[1750779531473,7.25695955,2438.8,2438.7,0.81974]
[1750779531669,0.81977,2438.7,2438.6,0.81975]
[1750779534474,8.48651955,2438.8,2438.3,2.0266]
[1750779534774,0.8198,2438.6,2438.5,0.81978]
[1750779534966,7.67576,2438.7,2438.6,0.81977]
[1750779535368,0.8198,2438.6,2438.5,0.81979]
[1750779537373,0.81991,2438.2,2438.1,0.6787]
[1750779537577,0.81994,2438.1,2438.0,0.6492]
[1750779537972,0.82004,2437.8,2437.7,0.7176]
[1750779538475,0.82004,2437.8,2437.7,1.53767]
[1750779538868,0.82004,2437.8,2437.7,2.89267]
[1750779539877,0.82024,2437.2,2437.1,4.05589541]
[1750779540069,0.82028,2437.1,2437.0,3.8687]
[1750779540266,0.82028,2437.1,2437.0,0.6609]
[1750779540475,0.82039,2436.8,2436.4,6.44344541]
[1750779540675,5.78133955,2437.0,2436.6,0.6609]
[1750779540877,0.82041,2436.7,2436.6,2.83633]
[1750779541172,0.82041,2436.7,2436.6,2.83634]
[1750779541375,17.90894955,2437.0,2436.7,0.82038]
[1750779541376,0.82038,2436.8,2436.7,0.82038]
[1750779541566,15.85813955,2437.0,2436.6,2.0159]
[1750779541567,0.82041,2436.7,2436.6,2.0159]
[1750779541970,34.73413955,2436.7,2435.8,4.05635541]
[1750779542167,6.60200955,2436.0,2435.9,0.82068]
[1750779542368,5.78133955,2436.0,2435.9,0.82068]
[1750779542565,0.82071,2435.8,2435.7,0.6601]
[1750779543274,8.98913955,2436.0,2435.7,0.6601]
[1750779543571,0.82068,2435.9,2435.7,0.6601]
[1750779543883,9.80980955,2436.0,2435.8,0.8207]
[1750779544175,0.82068,2435.9,2435.8,0.8207]
[1750779544377,10.0798,2436.0,2435.9,0.82068]
[1750779544582,3.2078,2436.0,2435.9,0.82068]
[1750779545079,3.2078,2436.4,2436.0,2.05157]
[1750779545376,10.0798,2437.0,2436.9,0.82032]
[1750779545671,12.65333955,2437.3,2436.6,5.25885]
[1750779545881,12.65333955,2437.3,2437.2,0.82024]
[1750779546071,0.82025,2437.2,2437.1,0.82026]
[1750779546271,12.65333955,2437.3,2436.7,0.7202]
[1750779546567,5.78133955,2437.0,2436.7,0.7202]
[1750779546766,5.78133955,2437.0,2436.9,0.82034]
[1750779547376,0.82034,2436.9,2436.8,0.82035]
[1750779547575,6.873,2436.9,2436.8,0.82035]
[1750779547769,7.69334,2436.9,2436.8,0.82035]
[1750779547974,6.873,2436.9,2436.8,0.82035]
[1750779549571,4.02808,2437.1,2437.0,0.82031]
[1750779549778,0.82032,2437.0,2436.9,0.82032]
[1750779549985,10.9011,2437.1,2437.0,0.82031]
[1750779550175,10.0808,2437.1,2437.0,0.82031]
[1750779551568,0.82038,2436.8,2436.3,0.671]